fUST/lending_fUST_20240706
["ID","MTS","AMOUNT","RATE_DAILY","PERIOD"]
[331342311,1720257039819,-500.0,0.00045889,7]
[331342312,1720257039831,-500.0,0.00045889,7]
[331342313,1720257039841,-500.0,0.00045889,7]
[331342314,1720257039851,-500.0,0.00045889,7]
[331342315,1720257039861,-500.0,0.00045889,7]
[331342316,1720257039871,-151.0,0.0004589,14]
[331342317,1720257039882,-151.0,0.0004589,14]
[331342318,1720257039894,-4265.381484,0.0004589,14]
[331342319,1720257039905,-4265.381484,0.0004589,14]
[331342320,1720257039915,-1026.564006,0.0004589,14]
[331342321,1720257039925,-1026.564006,0.0004589,14]
[331342322,1720257039935,-418.141302,0.0004589,14]
[331342323,1720257039946,-418.141302,0.0004589,14]
[331342324,1720257039956,-4316.857617,0.0004589,14]
[331342325,1720257039966,-4316.857617,0.0004589,14]
[331342326,1720257039977,-249.285216,0.0004589,14]
[331342327,1720257039988,-249.285216,0.0004589,14]
[331342328,1720257039998,-359.521702,0.0004589,14]
[331342329,1720257040008,-359.521702,0.0004589,14]
[331342330,1720257040019,-1163.29,0.0004589,3]
[331342331,1720257040029,-969.41,0.0004589,3]
[331342332,1720257040039,-101255.504399,0.000459,120]
[331342333,1720257040050,-151.0,0.000459,14]
[331342334,1720257040060,-151.0,0.000459,14]
[331342335,1720257040070,-431.54649,0.000459,2]
[331342336,1720257040080,-431.54649,0.000459,2]
[331342337,1720257040090,-151.0,0.000459,14]
[331342338,1720257040100,-151.0,0.000459,14]
[331342339,1720257040110,-152.521379,0.000459,14]
[331342340,1720257040119,-151.0,0.000459,14]
[331342341,1720257040129,-151.0,0.000459,14]
[331342342,1720257040139,-151.0,0.000459,14]
[331342343,1720257040149,-151.0,0.000459,14]
[331342344,1720257040159,-4265.381484,0.000459,14]
[331342345,1720257040169,-4265.381484,0.000459,14]
[331342346,1720257040179,-1026.564006,0.000459,14]
[331342347,1720257040188,-1026.564006,0.000459,14]
[331342348,1720257040199,-418.141302,0.000459,14]
[331342349,1720257040208,-418.141302,0.000459,14]
[331342350,1720257040218,-4316.857617,0.000459,14]
[331342351,1720257040228,-4316.857617,0.000459,14]
[331342352,1720257040238,-249.285216,0.000459,14]
[331342353,1720257040248,-249.285216,0.000459,14]
[331342354,1720257040258,-359.521702,0.000459,14]
[331342355,1720257040268,-359.521702,0.000459,14]
[331342356,1720257040277,-498.665952,0.000459,14]
[331342357,1720257040287,-498.665952,0.000459,14]
[331342358,1720257040296,-151.0,0.000459,14]
[331342359,1720257040306,-151.0,0.000459,14]
[331342360,1720257040316,-308.139488,0.000459,14]
[331342361,1720257040326,-308.139488,0.000459,14]
[331342362,1720257040336,-151.0,0.000459,14]
[331342363,1720257040346,-601.95749671,0.00045909,2]
[331342364,1720257040355,-150.50896018,0.0004592,2]
[331342365,1720257040365,-2040.34238499,0.00046,120]
[331342366,1720257040375,-250.0,0.00046,120]
[331342367,1720257040384,-1002.24864759,0.00046,60]
[331342368,1720257040394,-25688.61944058,0.00046089,5]
[331342369,1720257040404,-151.0,0.00046089,14]
[331342370,1720257040414,-4265.381484,0.00046089,14]
[331342371,1720257040424,-4265.381484,0.00046089,14]
[331342372,1720257040433,-1026.564006,0.00046089,14]
[331342373,1720257040443,-1026.564006,0.00046089,14]
[331342374,1720257040452,-418.141302,0.00046089,14]
[331342375,1720257040462,-418.141302,0.00046089,14]
[331342376,1720257040471,-4316.857617,0.00046089,14]
[331342377,1720257040482,-4316.857617,0.00046089,14]
[331342378,1720257040492,-249.285216,0.00046089,14]
[331342379,1720257040501,-249.285216,0.00046089,14]
[331342380,1720257040511,-359.521702,0.00046089,14]
[331342381,1720257040520,-359.521702,0.00046089,14]
[331342382,1720257040530,-498.665952,0.00046089,14]
[331342383,1720257040540,-498.665952,0.00046089,14]
[331342384,1720257040549,-151.0,0.00046089,14]
[331342385,1720257040559,-151.0,0.00046089,14]
[331342386,1720257040568,-308.139488,0.00046089,14]
[331342387,1720257040579,-308.139488,0.00046089,14]
[331342388,1720257040588,-151.0,0.00046089,14]
[331342389,1720257040597,-285.417498,0.00046188,14]
[331342390,1720257040608,-151.0,0.00046189,14]
[331342391,1720257040618,-198.0,0.00046189,14]
[331342392,1720257040627,-151.0,0.0004619,14]
[331342393,1720257040638,-151.0,0.0004619,14]
[331342394,1720257040648,-431.54649,0.0004619,2]
[331342395,1720257040658,-431.54649,0.0004619,2]
[331342396,1720257040667,-151.0,0.0004619,14]
[331342397,1720257040676,-151.0,0.0004619,14]
[331342398,1720257040686,-4265.381484,0.0004619,14]
[331342399,1720257040696,-4265.381484,0.0004619,14]
[331342400,1720257040705,-1026.564006,0.0004619,14]
[331342401,1720257040715,-1026.564006,0.0004619,14]
[331342402,1720257040724,-418.141302,0.0004619,14]
[331342403,1720257040734,-418.14130234,0.0004619,14]
[331342404,1720257040744,-4316.857617,0.0004619,14]
[331342405,1720257040753,-4316.857609,0.0004619,14]
[331342406,1720257040762,-249.285216,0.0004619,14]
[331342407,1720257040771,-249.285224,0.0004619,14]
[331342408,1720257040781,-359.521702,0.0004619,14]
[331342409,1720257040790,-359.521698,0.0004619,14]
[331342410,1720257040799,-498.665952,0.0004619,14]
[331342411,1720257040810,-498.665952,0.0004619,14]
[331342412,1720257040821,-151.0,0.0004619,14]
[331342413,1720257040832,-308.139488,0.0004619,14]
[331342414,1720257040841,-308.139491,0.0004619,14]
[331342415,1720257040851,-151.0,0.0004619,14]
[331342416,1720257040862,-1000.0,0.00046199,120]
[331342417,1720257040871,-1000.0,0.00046199,120]
[331342418,1720257040880,-1000.0,0.00046199,120]
[331342419,1720257040891,-1000.0,0.00046199,120]
[331342420,1720257040900,-1000.0,0.00046199,120]
[331342421,1720257040910,-1000.0,0.00046199,120]
[331342424,1720257040920,-1000.0,0.00046199,120]
[331342427,1720257040930,-1028.37695744,0.00046199,120]
[331342430,1720257040939,-1002.41632879,0.00046199,120]
[331342434,1720257040949,-13165.04371992,0.000462,61]
[331342437,1720257040959,-24144.54934159,0.000462,120]
[331342440,1720257040969,-878.0,0.00046217,2]
[331342442,1720257040978,-155.0,0.0004632,52]
[331342445,1720257040988,-160.0,0.00046341,4]
[331342447,1720257040997,-151.0,0.00046379,14]
[331342449,1720257041007,-151.0,0.00046379,14]
[331342451,1720257041016,-431.54649,0.00046379,2]
[331342452,1720257041026,-431.54649,0.00046379,2]
[331342454,1720257041035,-151.0,0.0004638,14]
[331342456,1720257041045,-431.54649,0.0004638,2]
[331342458,1720257041054,-431.54649,0.0004638,2]
[331342460,1720257041064,-151.0,0.0004638,14]
[331342461,1720257041074,-151.0,0.0004638,14]
[331342462,1720257041085,-151.0,0.0004638,14]
[331342463,1720257041095,-4265.381484,0.0004638,14]
[331342464,1720257041107,-4265.38148,0.0004638,14]
[331342465,1720257041117,-1026.564006,0.0004638,14]
[331342466,1720257041127,-1026.564008,0.0004638,14]
[331342467,1720257041136,-151.0,0.0004639,14]
[331342468,1720257041148,-151.0,0.0004639,14]
[331342469,1720257041157,-151.0,0.0004639,14]
[331342470,1720257041167,-207.236604,0.0004639,14]
[331342471,1720257041177,-151.0,0.0004639,14]
[331342472,1720257041186,-431.54649,0.0004639,2]
[331342473,1720257041196,-431.54649,0.0004639,2]
[331342474,1720257041206,-500.7012908,0.000464,30]
[331342475,1720257041216,-874.53377576,0.00046403,28]
[331342476,1720257041226,-151.0,0.00046439,14]
[331342477,1720257041236,-431.54649,0.00046439,2]
[331342479,1720257041246,-431.54649,0.00046439,2]
[331342481,1720257041255,-243.311123,0.00046439,14]
[331342483,1720257041265,-305.248761,0.00046449,14]
[331342484,1720257041274,-305.248761,0.00046449,14]
[331342486,1720257041284,-151.0,0.00046449,14]
[331342487,1720257041293,-151.0,0.00046449,14]
[331342488,1720257041303,-151.0,0.00046449,120]
[331342489,1720257041312,-151.097141,0.00046449,120]
[331342490,1720257041322,-431.54649,0.00046459,2]
[331342491,1720257041333,-431.54649,0.00046459,2]
[331342492,1720257041344,-305.248761,0.00046469,14]
[331342493,1720257041354,-305.248761,0.00046469,14]
[331342494,1720257041364,-151.0,0.00046469,14]
[331342495,1720257041374,-151.0,0.00046469,14]
[331342496,1720257041383,-305.248761,0.00046479,14]
[331342497,1720257041392,-305.248761,0.00046479,14]
[331342498,1720257041402,-151.0,0.00046479,14]
[331342499,1720257041411,-151.0,0.00046479,14]
[331342500,1720257041420,-431.54649,0.00046479,2]
[331342501,1720257041428,-431.54649,0.00046479,2]
[331342502,1720257041622,-1000.0,0.0004648,30]
[331342503,1720257041633,-305.248761,0.0004648,14]
[331342504,1720257041643,-305.248761,0.0004648,14]
[331342505,1720257041652,-305.248761,0.0004648,14]
[331342506,1720257041662,-305.248761,0.0004648,14]
[331342507,1720257041671,-151.0,0.0004648,14]
[331342508,1720257041681,-151.0,0.0004648,14]
[331342509,1720257041690,-151.0,0.0004648,14]
[331342510,1720257041700,-164.006757,0.0004648,14]
[331342511,1720257041709,-431.54649,0.0004648,2]
[331342512,1720257041719,-431.546491,0.0004648,2]
[331342513,1720257041729,-247.651,0.00046481,2]
[331342514,1720257041741,-1000.0,0.00046489,120]
[331342515,1720257041750,-305.248761,0.0004649,14]
[331342516,1720257041760,-305.248761,0.0004649,14]
[331342517,1720257041771,-305.248761,0.0004649,14]
[331342518,1720257041780,-305.248761,0.0004649,14]
[331342519,1720257041790,-151.0,0.0004649,14]
[331342520,1720257041800,-500.0,0.00046498,120]
[331342521,1720257041813,-287.31380591,0.00046498,31]
[331342522,1720257041823,-500.0,0.00046498,120]
[331342523,1720257041834,-500.0,0.00046498,120]
[331342524,1720257041844,-500.0,0.00046498,120]
[331342525,1720257041854,-500.0,0.00046498,120]
[331342526,1720257041864,-465.09651819,0.00046498,120]
[331342527,1720257041873,-500.0,0.00046498,120]
[331342528,1720257041883,-500.0,0.00046498,120]
[331342529,1720257041895,-183.90439903,0.00046498,120]
[331342530,1720257041904,-500.0,0.00046498,120]
[331342531,1720257041913,-500.0,0.00046498,120]
[331342532,1720257041923,-500.0,0.00046498,120]
[331342533,1720257041932,-500.0,0.00046498,120]
[331342534,1720257041942,-500.0,0.00046498,120]
[331342535,1720257041951,-500.0,0.00046498,120]
[331342536,1720257041960,-7244.92,0.00046499,120]
[331342537,1720257041969,-7244.92,0.00046499,120]
[331342538,1720257041978,-7244.92,0.00046499,120]
[331342539,1720257041988,-7244.92,0.00046499,120]
[331342540,1720257041997,-7244.92,0.00046499,120]
[331342541,1720257042007,-7244.92,0.00046499,120]
[331342542,1720257042017,-7244.92,0.00046499,120]
[331342543,1720257042027,-7244.92,0.00046499,120]
[331342544,1720257042036,-7244.92,0.00046499,120]
[331342545,1720257042045,-6152.17620303,0.00046499,120]
[331342546,1720257042215,-1092.74379697,0.00046499,120]
[331342547,1720257042225,-7244.92,0.00046499,120]
[331342548,1720257042235,-7244.92,0.00046499,120]
[331342549,1720257042245,-7244.92,0.00046499,120]
[331342550,1720257042254,-7244.92,0.00046499,120]
[331342551,1720257042263,-7244.92,0.00046499,120]
[331342552,1720257042272,-7244.92,0.00046499,120]
[331342553,1720257042281,-7244.92,0.00046499,120]
[331342554,1720257042291,-7244.92,0.00046499,120]
[331342555,1720257042300,-7244.92,0.00046499,120]
[331342556,1720257042310,-7244.92,0.00046499,120]
[331342557,1720257042320,-7244.92,0.00046499,120]
[331342558,1720257042329,-7244.92,0.00046499,120]
[331342559,1720257042342,-7244.92,0.00046499,120]
[331342560,1720257042352,-7245.10944163,0.00046499,120]
[331342561,1720257042362,-14385.86051871,0.000465,61]
[331342562,1720257042376,-5750.0,0.000465,61]
[331342563,1720257042691,-1574.5,0.000465,61]
[331342564,1720257042703,-999.9933705,0.000465,61]
[331342565,1720257042715,-48098.94918046,0.000465,61]
[331342566,1720257042724,-34080.85624479,0.000465,15]
[331342567,1720257042735,-150896.67236945,0.000465,15]
[331342583,1720257044073,-0.01209494,0.0004589,3]
[331342584,1720257044140,-154.6076521,0.0004589,3]
[331342607,1720257047332,-653.22025296,0.0004589,3]
[331342608,1720257047345,-500.0,0.00046498,120]
[331342609,1720257047356,-433.73307932,0.00046498,120]
[331342610,1720257047366,-6611.90804667,0.000465,15]
[331342611,1720257047455,-5750.0,0.000465,15]
[331342617,1720257052793,194.9537551,0.00043834,120]
[331342618,1720257065790,500.0,0.00043593,90]
[331342619,1720257072156,159.03402574,0.00043834,30]
[331342621,1720257138654,154.82195475,0.00043834,4]
[331342622,1720257152296,193.9263,0.00028684,30]
[331342633,1720257507809,99.52267813,0.00021096,2]
[331342640,1720258030128,-300.0,0.00021095,2]
[331342641,1720258030150,-300.0,0.00021095,2]
[331342642,1720258030174,-60.69107587,0.00021096,2]
[331342643,1720258030198,-3773.14321747,0.00021096,2]
[331342644,1720258030223,-797.84112734,0.00021096,2]
[331342645,1720258030245,-225.57506949,0.00021096,2]
[331342646,1720258030269,-10044.39599158,0.00021096,2]
[331342647,1720258030290,-155.25295908,0.00021096,2]
[331342648,1720258030311,-304.10670477,0.00021096,2]
[331342649,1720258030332,-4173.5699611,0.00021096,2]
[331342650,1720258030354,-763.32326228,0.00021096,2]
[331342651,1720258030375,-385.05168556,0.00021096,2]
[331342652,1720258030396,-395.0,0.00022944,2]
[331342653,1720258030419,-420.0,0.00023205,2]
[331342654,1720258030443,-345.83372341,0.00023966,2]
[331342655,1720258031142,-285.02921741,0.00023966,2]
[331342656,1720258033167,-413.2862768,0.00023966,2]
[331342657,1720258033194,-166.666666,0.00024312,2]
[331342658,1720258033218,-169.029954,0.00024533,2]
[331342659,1720258033242,-1224.952223,0.00024874,2]
[331342664,1720258146128,-447.56326508,0.00023966,2]
[331342665,1720258146150,-155.16757676,0.00023968,2]
[331342666,1720258146172,-208.35130789,0.00024481,2]
[331342667,1720258146195,-300.0,0.00024873,2]
[331342668,1720258146220,-225.57506949,0.00024874,2]
[331342669,1720258146243,-4173.5699611,0.00024874,2]
[331342670,1720258146266,-763.32326228,0.00024874,2]
[331342671,1720258146351,-10269.9294044,0.00024874,2]
[331342672,1720258146374,-166.666666,0.00024974,2]
[331342673,1720258146396,-250.0,0.00025014,2]
[331342674,1720258146418,-157.52474722,0.00025204,2]
[331342675,1720258146440,-166.666666,0.00025637,2]
[331342676,1720258146462,-204.1601785,0.00026127,2]
[331342677,1720258146484,-166.666666,0.000263,2]
[331342678,1720258146506,-166.666666,0.00026963,2]
[331342679,1720258146528,-166.666666,0.00027626,2]
[331342680,1720258146549,-333.36207532,0.000279,2]
[331342681,1720258146572,-160.213754,0.00027913,2]
[331342682,1720258146595,-3737.44681431,0.00028,30]
[331342683,1720258146616,-587.7197832,0.0002832,2]
[331342684,1720258146638,-189.07190326,0.00028684,2]
[331342685,1720258146661,-155.1958273,0.0003,4]
[331342686,1720258146684,-3419.65595468,0.0003015,4]
[331342687,1720258146705,-440.67378173,0.0003015,4]
[331342688,1720258146727,-10000.0,0.00032324,30]
[331342689,1720258146750,-2273.65752433,0.0003455,4]
[331342690,1720258146770,-1044.12365596,0.00034563,4]
[331342691,1720258146791,-360.16423676,0.00034585,4]
[331342692,1720258146811,-250.59593253,0.00034602,4]
[331342693,1720258146830,-155.0528303,0.00034602,4]
[331342694,1720258146854,-160.213754,0.0003473,2]
[331342695,1720258146875,-1267.15641025,0.00036028,2]
[331342696,1720258146896,-1758.37782493,0.00037259,4]
[331342697,1720258146916,-1189.58489802,0.00037523,4]
[331342698,1720258146936,-1603.27828426,0.00037523,14]
[331342699,1720258146957,-1634.59229075,0.00037523,4]
[331342700,1720258146979,-1061.3999352,0.00037807,4]
[331342701,1720258147001,-962.96577273,0.00037807,4]
[331342702,1720258147022,-1109.73471439,0.00037807,4]
[331342703,1720258147047,-500.0,0.00037897,7]
[331342704,1720258147071,-500.0,0.00037897,7]
[331342705,1720258147096,-500.0,0.00037897,7]
[331342706,1720258147118,-500.0,0.00037897,7]
[331342707,1720258147142,-500.0,0.00037897,7]
[331342708,1720258147166,-500.0,0.00037897,7]
[331342709,1720258147189,-500.0,0.00037897,7]
[331342710,1720258147212,-500.0,0.00037897,7]
[331342711,1720258147240,-500.0,0.00037897,7]
[331342712,1720258147264,-500.0,0.00037897,7]
[331342713,1720258147287,-500.0,0.00037897,7]
[331342714,1720258147312,-245.64855668,0.00037897,7]
[331342715,1720258147513,-500.0,0.00037897,7]
[331342716,1720258147538,-219.30203919,0.00037897,7]
[331342717,1720258147559,-816.09649007,0.00038264,21]
[331342718,1720258147582,-500.0,0.00038264,4]
[331342719,1720258147605,-714.87934541,0.00038264,4]
[331342720,1720258147628,-742.75440298,0.00038264,30]
[331342721,1720258147651,-643.98391124,0.00038499,4]
[331342722,1720258147673,-696.2767755,0.00038499,4]
[331342723,1720258147696,-495.50543718,0.00038499,4]
[331342724,1720258147718,-264.9057893,0.00039393,2]
[331342725,1720258147740,-405.97364914,0.00039393,4]
[331342726,1720258147763,-256.25118647,0.00039393,4]
[331342727,1720258147786,-1267.15641025,0.00039746,2]
[331342728,1720258147808,-154.79948781,0.00039994,4]
[331342729,1720258147830,-360.56768716,0.00039994,4]
[331342730,1720258147854,-310.14420599,0.00039994,4]
[331342731,1720258147879,-3990.98413807,0.00039999,4]
[331342732,1720258147900,-351.42169063,0.00039999,30]
[331342733,1720258147922,-351.42169063,0.00039999,30]
[331342734,1720258147944,-154.63660398,0.00039999,4]
[331342735,1720258147967,-307.50998759,0.00039999,4]
[331342736,1720258147990,-155.24403697,0.00039999,10]
[331342737,1720258148011,-377.38683404,0.00039999,4]
[331342738,1720258148033,-869.18444447,0.0004,4]
[331342739,1720258159108,-2213.16892268,0.00035615,4]
[331342740,1720258159129,-645.35673411,0.00038264,4]
[331342741,1720258159153,-320.92324226,0.00039177,4]
[331342742,1720258159177,-360.68182567,0.00039994,7]
[331342743,1720258159197,-154.63660398,0.00039994,4]
[331342744,1720258159218,-38.13863328,0.0004,4]
[331342745,1720258159244,-314.27902116,0.0004,120]
[331342746,1720258159267,-435.0,0.00040229,2]
[331342747,1720258159288,-211.90830169,0.00040229,4]
[331342748,1720258159308,-269.02930338,0.00040229,4]
[331342749,1720258159330,-175.06419494,0.00040229,4]
[331342750,1720258159794,-160.213754,0.00041547,2]
[331342751,1720258159816,-155.16093551,0.00041589,4]
[331342752,1720258159838,-374.89328282,0.00041941,4]
[331342753,1720258159859,-270.77422265,0.00042229,4]
[331342754,1720258159880,-537.32517777,0.00042629,30]
[331342755,1720258160227,166.47861002,0.00039999,4]
[331342756,1720258160609,155.46811998,0.00040278,4]
[331342757,1720258182577,1949.88410345,0.0003015,4]
[331342758,1720258184739,365.31313174,0.0003015,4]
[331342759,1720258191183,273.78859858,0.0003015,4]
[331342760,1720258193039,495.50543718,0.0003015,4]
[331342761,1720258194001,160.0,0.0004377,7]
[331342762,1720258194038,531.33500682,0.0003015,4]
[331342763,1720258194066,160.0,0.00043069,6]
[331342764,1720258194266,160.0,0.00042368,5]
[331342765,1720258194457,303.07590911,0.0003015,4]
[331342766,1720258194602,160.0,0.00041667,4]
[331342767,1720258194912,160.0,0.00040966,3]
[331342768,1720258201399,749.3596177,0.00035,4]
[331342769,1720258203313,478.95551741,0.00028,30]
[331342770,1720258206223,356.35568753,0.0003015,4]
[331342771,1720258206249,706.92669939,0.0003015,4]
[331342779,1720258232649,-160.0,0.00044471,8]
[331342781,1720258232659,-3180.13439246,0.00045,120]
[331342783,1720258232669,-160.0,0.00045172,9]
[331342785,1720258232679,-601.95749671,0.00045436,2]
[331342787,1720258232688,-797.24827986,0.0004579,28]
[331342789,1720258232698,-1973.9351198,0.000458,2]
[331342791,1720258232707,-183.25203562,0.000458,2]
[331342793,1720258232716,-160.0,0.00045873,10]
[331342795,1720258232726,-73534.3394953,0.0004589,5]
[331342797,1720258232735,-204.26,0.0004589,30]
[331342799,1720258232745,-170.21,0.0004589,30]
[331342801,1720258232756,-851.09,0.0004589,30]
[331342803,1720258232766,-1246.62,0.0004589,3]
[331342805,1720258232777,-65019.92233318,0.000459,120]
[331342809,1720258232811,166.666666,0.00038915,2]
[331342810,1720258232947,166.666666,0.00039976,2]
[331342811,1720258233162,166.666666,0.00041037,2]
[331342812,1720258233376,166.666666,0.00042098,2]
[331342863,1720258238572,-166.666666,0.00043159,2]
[331342865,1720258238582,-166.666666,0.0004422,2]
[331342867,1720258238592,-500.0,0.00045889,7]
[331342868,1720258238601,-193.96095074,0.00045889,7]
[331342869,1720258238611,-1038.85,0.0004589,3]
[331342870,1720258238620,-78002.58206582,0.000459,120]
[331342871,1720258238630,-183.25203561,0.00045947,2]
[331342872,1720258238639,-2040.34238499,0.00046,120]
[331342873,1720258238648,-549.3625375,0.00046,30]
[331342874,1720258238658,-1002.24864759,0.00046,60]
[331342875,1720258238667,-153.0,0.00046027,2]
[331342876,1720258238677,-206.1814845,0.00046027,2]
[331342877,1720258238688,-206.1814845,0.00046027,2]
[331342878,1720258238697,-306.0,0.00046027,2]
[331342879,1720258238707,-293.3880832,0.00046027,2]
[331342880,1720258238716,-206.1814845,0.00046027,2]
[331342881,1720258238726,-590.0058762,0.00046027,2]
[331342882,1720258238735,-306.4145384,0.00046027,2]
[331342883,1720258238745,-293.3880832,0.00046027,2]
[331342884,1720258238757,-206.1814845,0.00046027,2]
[331342885,1720258238767,-404.4813524,0.00046027,2]
[331342886,1720258238777,-586.6977685,0.00046027,2]
[331342887,1720258238786,-306.0,0.00046027,2]
[331342888,1720258238796,-356.9071016,0.00046027,2]
[331342889,1720258238806,-412.2817182,0.00046027,2]
[331342890,1720258238815,-154.8821934,0.00046027,2]
[331342891,1720258238826,-206.1408591,0.00046027,2]
[331342892,1720258238835,-412.3223436,0.00046027,2]
[331342893,1720258238845,-415.856757,0.00046027,2]
[331342894,1720258238855,-502.4590429,0.00046027,2]
[331342895,1720258238866,-183.25203561,0.00046095,2]
[331342896,1720258238876,-13165.04371992,0.0004619,61]
[331342897,1720258238886,-73534.3394953,0.0004619,5]
[331342898,1720258238896,-24144.0,0.000462,120]
[331342899,1720258238905,-183.25203561,0.00046242,2]
[331342900,1720258238915,-150.50896018,0.00046288,2]
[331342901,1720258238925,-155.0,0.0004632,52]
[331342902,1720258238934,-183.25203561,0.00046389,2]
[331342903,1720258238945,-25688.61944058,0.0004639,5]
[331342904,1720258238954,-2000.0,0.000464,120]
[331342905,1720258238965,-500.0,0.00046461,120]
[331342906,1720258238974,-500.0,0.00046461,120]
[331342907,1720258238984,-287.31380591,0.00046461,31]
[331342908,1720258238994,-606.25373162,0.00046461,120]
[331342909,1720258239004,-500.0,0.00046461,120]
[331342910,1720258239014,-500.0,0.00046461,120]
[331342911,1720258239024,-500.0,0.00046461,120]
[331342912,1720258239034,-298.45689856,0.00046461,120]
[331342913,1720258239045,-500.0,0.00046461,120]
[331342914,1720258239055,-500.0,0.00046461,120]
[331342915,1720258239066,-500.0,0.00046461,120]
[331342916,1720258239076,-500.0,0.00046461,120]
[331342917,1720258239086,-500.0,0.00046461,120]
[331342918,1720258239097,-500.0,0.00046461,120]
[331342919,1720258239107,-245.27609082,0.00046461,120]
[331342920,1720258239117,-500.0,0.00046461,120]
[331342921,1720258239128,-500.0,0.00046461,120]
[331342922,1720258239139,-500.0,0.00046461,120]
[331342923,1720258239150,-500.0,0.00046461,120]
[331342924,1720258239160,-73534.3394953,0.00046462,5]
[331342925,1720258239170,-151.0,0.00046462,14]
[331342926,1720258239180,-196.783472,0.00046462,14]
[331342927,1720258239191,-179.760851,0.00046462,14]
[331342928,1720258239201,-179.760851,0.00046462,14]
[331342929,1720258239212,-151.0,0.00046462,14]
[331342930,1720258239222,-151.0,0.00046462,14]
[331342931,1720258239232,-151.0,0.00046462,14]
[331342932,1720258239242,-151.0,0.00046462,14]
[331342933,1720258239257,-199.466381,0.00046462,14]
[331342934,1720258239267,-199.466381,0.00046462,14]
[331342935,1720258239278,-150.0,0.00046472,2]
[331342936,1720258239290,-878.0,0.00046472,2]
[331342937,1720258239300,-151.0,0.00046488,14]
[331342938,1720258239310,-179.760851,0.00046488,14]
[331342939,1720258239320,-179.760851,0.00046488,14]
[331342940,1720258239331,-151.0,0.00046488,14]
[331342941,1720258239342,-151.0,0.00046488,14]
[331342942,1720258239352,-151.0,0.00046488,14]
[331342943,1720258239362,-151.0,0.00046488,14]
[331342944,1720258239371,-199.466381,0.00046488,14]
[331342945,1720258239381,-199.466381,0.00046488,14]
[331342946,1720258239392,-109488.0115699,0.00046488,5]
[331342954,1720258240832,-12476.46651442,0.00046488,5]
[331342955,1720258240844,-8642.46301127,0.00046488,5]
[331342956,1720258240856,-4263.48996828,0.00046488,5]
[331342957,1720258241043,495.50543718,0.00036545,4]
[331342958,1720258241193,-623.27614039,0.00046488,5]
[331342960,1720258242028,-3224.0,0.00046488,5]
[331342961,1720258242039,-8350.97178674,0.00046488,5]
[331342962,1720258242049,-1000.0,0.00046489,90]
[331342963,1720258242058,-1000.0,0.00046489,90]
[331342964,1720258242067,-1000.0,0.00046489,90]
[331342965,1720258242077,-1000.0,0.00046489,90]
[331342966,1720258242087,-1000.0,0.00046489,90]
[331342967,1720258242097,-1000.0,0.00046489,90]
[331342968,1720258242106,-1000.0,0.00046489,90]
[331342969,1720258242116,-1028.37695744,0.00046489,90]
[331342970,1720258242125,-483.621999,0.00046498,120]
[331342971,1720258242135,-8461.36,0.00046498,120]
[331342972,1720258242144,-8461.36,0.00046498,120]
[331342973,1720258242154,-418.39974321,0.00046498,120]
[331342974,1720258242166,-8042.96025679,0.00046498,120]
[331342975,1720258242176,-8461.36,0.00046498,120]
[331342976,1720258242186,-8461.36,0.00046498,120]
[331342977,1720258242196,-8461.36,0.00046498,120]
[331342978,1720258242205,-8461.36,0.00046498,120]
[331342979,1720258242214,-8461.36,0.00046498,120]
[331342980,1720258242223,-8461.36,0.00046498,120]
[331342981,1720258242232,-8461.36,0.00046498,120]
[331342982,1720258242242,-8461.36,0.00046498,120]
[331342983,1720258242254,-6445.96516846,0.00046498,120]